Cogmind - Beta 17 @@@ ROGUE MODE // 2026.08.12 @ 15:09:12 Player: TheSkyeDoctor Result: Destroyed by G-50 Soldier with Heavy Laser Performance ------------- Evolutions (5) 2500 Regions Visited (11) 2200 Robots Destroyed (174) 870 Value Destroyed (7491) 7491 Prototype IDs (16) 320 Alien Tech Used (0) 0 Bonus (5064) 5064 TOTAL SCORE: 18445 Bonus ------- High Alert Combat Kills 2082 Follower Combat Kills 1936 Entered Garrisons 200 Network Hubs Disabled 200 Built Enhanced Grunts 300 Met R17 at Cetus 500 Friendly Fire -154 Cogmind --------- Core Integrity 0/1000 Matter 299/300 Energy 95/100 System Corruption 7% Temperature Cool (18) Movement Core (50) Location -5/Factory Parts ------- > --- POWER (2) -------- (None) > --- PROPULSION (4) --- (None) > --- UTILITY (7) ------ Improved Signal Interpreter Graphene Brace > --- WEAPON (4) ------- (None) > --- INVENTORY (5) ---- Biometal Leg Armored Wheel Improved Terrain Scanner Advanced ECM Suite Improved Datajack Peak State ------------ > --- POWER ------------ Particle Reactor Quantum Reactor > --- PROPULSION ------- Heavy Armored Exoskeleton > --- UTILITY ---------- Advanced Heat Sink Huge Storage Unit Improved Signal Interpreter Advanced Targeting Computer Centrium Medium Armor Plating Graphene Brace Advanced Force Field > --- WEAPON ----------- Heavy Laser Advanced Variable Charge Gun Improved Heavy Machine Gun Linear Accelerator > --- INVENTORY -------- Light Angular Momentum Engine Carbon-fiber Leg Carbon-fiber Leg Carbon-fiber Leg Carbon-fiber Leg Flexi-carbon Leg Enhanced Flexi-carbon Leg Biometal Leg Armored Wheel Advanced Heat Sink Advanced Energy Well Large Matter Pod Structural Scanner Improved Terrain Scanner Energy Filter Advanced ECM Suite Compact HERF Cannon Nova Cannon KE Penetrator Hypervelocity Railgun Rocket Launcher Improved Datajack Plasma Cutter [Rating: 121] Favorites ----------- Power Quantum Reactor Engine Heavy Ion Engine Power Core Neutrino Core Reactor Quantum Reactor Propulsion Light Treads Treads Light Treads Leg Carbon-fiber Leg Wheel Armored Wheel Utility Advanced Targeting Computer Device Advanced Heat Sink Storage Huge Storage Unit Processor Advanced Targeting Computer Protection Centrium Medium Armor Plating Weapon Advanced KE Penetrator Energy Gun Advanced Variable Charge Gun Energy Cannon Compact HERF Cannon Ballistic Gun Advanced KE Penetrator Ballistic Cannon Advanced Assault Cannon Launcher Precision Grenade Launcher Impact Weapon Impact Mace Slashing Weapon Scythe Special Melee Weapon Improved Datajack Build | -11 -10 -9 -8 -7 -6 -6 -6 -6 -6 -6 -5 ------- Run | Yrd Mat Mat Mat Fac Fac Ext Cet Arc Hub Gar Fac Slots Evolved 10 | . . 2 2 2 2 . . . . . 2 Power 1 | . . . . . . . . . . . 1 Propulsion 2 | . . . 1 1 . . . . . . . Utility 5 | . . . 1 1 2 . . . . . 1 Weapon 2 | . . 2 . . . . . . . . . Parts Attached 134 | 7 4 5 23 9 5 29 9 2 2 19 20 Power 14 | 1 . 1 3 . 1 1 1 . . 2 4 Engine 7 | 1 . 1 2 . 1 1 . . . . 1 Core 4 | . . . 1 . . . . . . 1 2 Reactor 3 | . . . . . . . 1 . . 1 1 Propulsion 37 | 2 . . 9 . 1 10 3 . 2 5 5 Treads 17 | 2 . . 9 . 1 5 . . . . . Leg 19 | . . . . . . 4 3 . 2 5 5 Wheel 1 | . . . . . . 1 . . . . . Hover . | . . . . . . . . . . . . Flight . | . . . . . . . . . . . . Utility 36 | 2 2 . 3 4 3 7 2 2 . 6 5 Device 18 | 1 . . 1 2 1 4 1 . . 3 5 Storage 5 | 1 2 . . 1 . . . . . 1 . Processor 6 | . . . 1 . 2 1 . 1 . 1 . Hackware . | . . . . . . . . . . . . Protection 7 | . . . 1 1 . 2 1 1 . 1 . Artifact . | . . . . . . . . . . . . Weapon 47 | 2 2 4 8 5 . 11 3 . . 6 6 Energy Gun 14 | . 2 2 2 1 . 3 1 . . 2 1 Energy Cannon 4 | . . . . . . 1 . . . . 3 Ballistic Gun 15 | 2 . 2 3 . . 2 2 . . 2 2 Ballistic Cannon 6 | . . . . 1 . 3 . . . 2 . Launcher 3 | . . . 1 1 . 1 . . . . . Special Weapon . | . . . . . . . . . . . . Impact Weapon 3 | . . . 1 2 . . . . . . . Slashing Weapon 1 | . . . 1 . . . . . . . . Piercing Weapon . | . . . . . . . . . . . . Special Melee Weapon 1 | . . . . . . 1 . . . . . Unidentified Prototypes 12 | . . 3 1 2 . . 3 1 . 2 . Parts Lost 83 | . 1 . 11 . 4 22 1 . 4 13 27 Power 10 | . . . 1 . 1 1 . . . 2 5 Propulsion 22 | . . . 5 . 3 6 1 . . 3 4 Utility 20 | . . . . . . 7 . . 2 3 8 Weapon 31 | . 1 . 5 . . 8 . . 2 5 10 Highest Loss Streak 12 | . 1 . 6 . 2 12 1 . 3 4 9 To Critical Strikes 2 | . . . . . . 1 . . . 1 . Average Backups 18 | 1 3 10 18 20 22 21 23 25 24 19 19 Power 1 | . 1 1 1 1 . 1 1 2 2 1 . Propulsion 2 | . . . 1 2 1 1 2 1 1 3 7 Utility 8 | . 1 4 9 10 10 9 9 12 12 9 5 Weapon 5 | . . 2 4 5 7 7 9 8 7 3 2 Tool/Special . | . . . . . . . . . . . . Unused Backups 20 | . . . 5 2 2 2 3 . 1 2 3 Power 3 | . . . . . . 1 2 . . . . Propulsion 1 | . . . 1 . . . . . . . . Utility 9 | . . . 3 . 1 1 . . . 2 2 Weapon 5 | . . . 1 2 . . 1 . 1 . . Tool/Special 2 | . . . . . 1 . . . . . 1 Average Slot Usage (%) 91 | . 99 95 97 99 96 84 90 100 99 93 71 Engine 4 | . 14 11 8 7 5 5 . . . . . Reactor 2 | . . . . . . . 5 6 6 4 5 Treads 13 | . 28 22 24 29 22 13 . . . . . Leg 7 | . . . . . . . 26 26 26 20 5 Device 10 | . 14 11 5 14 13 8 8 13 12 6 16 Storage 7 | . 14 11 9 7 6 6 6 6 6 6 6 Processor 12 | . . . 8 7 19 15 13 16 20 19 10 Protection 2 | . . . 3 . . 5 1 3 . 5 2 Energy Gun 9 | . 11 32 13 6 6 5 6 6 6 6 6 Ballistic Gun 9 | . 16 7 16 8 6 5 10 13 13 8 3 Ballistic Cannon 2 | . . . . 6 5 5 2 . . 4 2 Impact Weapon 2 | . . . 1 7 6 1 . 1 6 4 . Peak Build Rating 121 | 7 7 19 34 42 51 52 92 96 99 107 121 Average Rating 57 | 5 6 16 27 39 49 45 72 91 96 89 102 On Entrance 48 | . 7 7 19 34 42 49 52 92 92 78 107 Avg Prop Armor Cover (%) 9 | . . . . . . 9 . . . . . Naked Turns . | . . . . . . . . . . . . Heaviest Build 167 | 13 49 58 65 103 106 116 132 132 129 148 167 Greatest Support 100 | 40 40 40 63 80 80 60 86 86 100 100 90 Greatest Overweight (x) 9 | . 1 1 2 5 2 9 2 1 1 2 1 Average Overweight (x) 1 | . . 1 . . 1 4 1 1 1 1 . Largest Inventory Capacity 25 | 8 20 20 20 25 25 25 25 25 25 25 25 Average Capacity 22 | 7 15 20 20 22 25 25 25 25 25 25 24 Most Carried 25 | 2 5 14 20 25 24 25 25 25 25 25 24 Average Carried 19 | 1 3 10 18 21 23 21 23 25 24 19 19 Final Capacity 25 | 8 20 20 20 25 25 25 25 25 25 25 5 Final Carried 25 | 2 4 14 20 25 24 22 25 25 24 24 5 Class Distribution -------------------- 50% | Scavenger-Gunner 18% | Gunner 14% | Scavenger-Tank 11% | Mutant 5% | Scavenger-Mutant Dominant Class ---------------- Mutant | -10/Materials Gunner | -9/Materials Scavenger-Gunner | -8/Materials Scavenger-Gunner | -7/Factory Scavenger-Gunner | -6/Factory Gunner | -6/Extension Scavenger-Gunner | -6/Cetus Scavenger-Gunner | -6/Archives Scavenger-Gunner | -6/Hub_04(d) Scavenger-Gunner | -6/Garrison Scavenger-Tank | -5/Factory Resources | -11 -10 -9 -8 -7 -6 -6 -6 -6 -6 -6 -5 ----------- Run | Yrd Mat Mat Mat Fac Fac Ext Cet Arc Hub Gar Fac Matter Collected 4756 | 290 72 87 579 83 475 978 233 76 210 531 1142 Remotely . | . . . . . . . . . . . . Salvage Created 7397 | 117 217 343 1394 107 285 1032 223 55 786 900 1938 Parts 341 | 13 19 26 81 4 6 33 13 5 39 35 67 Haulers Intercepted 3 | . . . 3 . . . . . . . . Recyclers Shooed 3 | . 1 . 1 . . 1 . . . . . Parts Field Recycled . | . . . . . . . . . . . . Retrieved Matter . | . . . . . . . . . . . . Parts Self-Destructed . | . . . . . . . . . . . . Prevented . | . . . . . . . . . . . . Parts Restored . | . . . . . . . . . . . . Kills | -11 -10 -9 -8 -7 -6 -6 -6 -6 -6 -6 -5 ------- Run | Yrd Mat Mat Mat Fac Fac Ext Cet Arc Hub Gar Fac Combat Hostiles Destroyed 133 | . 4 11 27 2 6 15 3 . 10 22 33 Melee 5 | . . . 2 . . . . . . 2 1 Guns 78 | . 4 10 23 . 4 9 2 . 8 7 11 Cannons 33 | . . . . 2 2 5 1 . . 10 13 AOE 10 | . . 1 2 . . 1 . . . 2 4 Classes Destroyed 20 | 2 3 1 3 1 . 3 . . 3 1 3 Worker 4 | . . . 2 . 1 1 . . . . . Builder 8 | . . . . . . 5 . . 2 . 1 Tunneler 5 | 3 . . . . . 1 . . . . 1 Hauler 3 | . . . 3 . . . . . . . . Recycler 5 | 1 . . . . . 2 . . . . 2 Mechanic 2 | . . . . . . . . . 2 . . Operator 4 | . 1 . 1 . . 1 . . . . 1 Watcher 10 | . 2 1 2 1 1 . 2 . 1 . . Swarmer 29 | . . 7 8 . 2 1 . . . 7 4 Saboteur 1 | . . . . . . . . . . . 1 Grunt 62 | . 4 4 12 . 3 6 . . 7 13 13 Brawler 3 | . . . . . . . . . . 1 2 Duelist 3 | . . . . . . . . . 1 . 2 Sentry 12 | . . . 7 1 1 3 . . . . . Demolisher 2 | . . . . . . . . . . . 2 Specialist 4 | . . . . . . . . . 2 . 2 Hunter 3 | . . . . . . 1 . . . . 2 Programmer 6 | . . . . 1 . 1 . . . . 4 Behemoth 3 | . . . . . . 2 . . . 1 . Cetus Guard 3 | . . . . . . . 3 . . . . Assembled 1 | . . . . . . . . . . . 1 Guerrilla 2 | . . . . . . 1 . 1 . . . Best Kill Streak 10 | 2 3 7 7 1 3 7 3 . 7 6 10 Combat Bots Only 7 | . 3 7 6 1 3 2 2 . 4 6 7 Max Kills in Single Turn 4 | 1 1 1 2 1 1 4 2 1 3 2 4 Gunslinging 1 | . . . 1 . . . . . 1 . . Exploded 3 | . . 1 1 . . 1 . . . 2 3 Melee 1 | . . . 1 . . . . . . 1 1 Uniques/NPCs Destroyed . | . . . . . . . . . . . . Combat | -11 -10 -9 -8 -7 -6 -6 -6 -6 -6 -6 -5 -------- Run | Yrd Mat Mat Mat Fac Fac Ext Cet Arc Hub Gar Fac Hostile Shots Fired 1334 | . 32 30 137 49 77 279 31 . 69 145 485 Missed 342 | . 8 5 33 12 27 78 12 . 20 27 120 Hits 992 | . 24 25 104 37 50 201 19 . 49 118 365 Melee 13 | . . . . . . . . . 1 3 9 Projectile 979 | . 24 25 104 37 50 201 19 . 48 115 356 AOE 23 | . . . . . . . . . . . 23 Critical Strikes 34 | . . . 5 . . 7 3 . 2 7 10 Actively Blocked 10 | . . . . . . . . . . . 10 Part Disruptions 1 | . . . . . . . . . 1 . . Damage Taken 16139 | . 338 278 1637 364 594 2878 393 . 1093 2288 6276 Core 2029 | . 85 28 185 97 41 228 60 . 66 234 1005 Absorbed by Shields 1456 | . . . . . . 377 190 . . 10 879 Core Remaining (%) 72 | 100 66 93 66 86 . . . . . 26 . Volleys Fired 365 | 10 28 19 62 5 14 59 14 2 22 49 81 Largest 4 | 2 2 4 4 3 3 4 3 3 3 4 4 Hottest 262 | 40 90 201 159 143 143 220 168 150 150 197 262 Shots Fired 988 | 20 53 64 193 15 42 156 31 7 64 144 199 Gun 768 | 20 53 64 191 10 28 101 19 7 64 107 104 Cannon 202 | . . . . 5 14 49 12 . . 34 88 Launcher 18 | . . . 2 . . 6 . . . 3 7 Special . | . . . . . . . . . . . . Kinetic 560 | 20 37 8 109 10 28 100 28 5 44 93 78 Thermal 359 | . 16 40 71 5 14 50 3 2 20 48 90 Explosive 18 | . . . 2 . . 6 . . . 3 7 Electromagnetic 51 | . . 16 11 . . . . . . . 24 Robot Hit Streak 24 | 3 8 7 24 13 11 19 5 11 10 10 15 Robot Miss Streak 6 | 4 3 5 4 4 2 3 2 1 2 6 3 Penetration Max 2 | . . . . . . 1 1 1 1 1 2 Secondary Targets 14 | . . 2 7 . . 1 . . 3 1 . Max Gunslinging Chain 2 | . . 1 1 . . 1 . . 2 1 . Shots Hit Robots 706 | 8 33 32 148 13 34 131 22 12 49 96 128 Core Hits 363 | 7 16 16 64 7 23 78 13 1 25 48 65 Critical Kills 28 | . 1 . . . . 3 3 1 2 9 9 Critical Parts Destroyed 35 | . 2 . . . 1 6 1 . 5 12 8 Critical Strikes 81 | . 4 1 5 1 2 12 7 2 7 21 19 Burn 6 | . 1 1 3 . . 1 . . . . . Meltdown 1 | . . . . . . . . . . . 1 Destroy 55 | . 3 . . . . 7 5 2 5 17 16 Blast 8 | . . . . 1 1 2 2 . . . 2 Smash 9 | . . . . . 1 2 . . 2 4 . Sever 2 | . . . 2 . . . . . . . . Melee Attacks 98 | . . . 12 4 14 18 . 6 4 40 . Impact 69 | . . . . 4 14 7 . . 4 40 . Slashing 12 | . . . 12 . . . . . . . . Piercing . | . . . . . . . . . . . . Sneak Attacks 22 | . . . 2 . 1 12 . 6 . 1 . Combat Hostiles 1 | . . . . . . . . . . 1 . Follow-up Attacks . | . . . . . . . . . . . . Damage Inflicted 18721 | 68 330 543 2700 429 889 3434 641 186 1920 3013 4568 Guns 10775 | 68 330 483 2122 199 473 1826 418 186 1515 1769 1386 Cannons 4324 | . . . . 88 240 702 223 . . 650 2421 Explosions 2263 | . . 60 201 122 . 650 . . 320 167 743 Melee 1341 | . . . 377 20 176 256 . . 85 427 . Ramming 18 | . . . . . . . . . . . 18 Kinetic 7361 | 68 182 14 780 159 364 1367 576 123 1031 1587 1110 Thermal 6803 | . 148 349 1131 250 349 1161 65 63 484 832 1971 Explosive 1761 | . . . 201 . . 650 . . . 167 743 Electromagnetic 1437 | . . 180 211 . . . . . 320 . 726 Impact 964 | . . . . 20 176 256 . . 85 427 . Slashing 377 | . . . 377 . . . . . . . . Piercing . | . . . . . . . . . . . . Highest Corruption 7 | . . 4 1 . 1 2 2 2 5 6 7 Average Corruption 2 | . . 2 1 . 1 1 2 2 2 5 3 Corruption Purged . | . . . . . . . . . . . . Corruption Blocked . | . . . . . . . . . . . . Effects 142 | . . 8 1 . 8 26 12 10 5 44 28 Message Errors 33 | . . . . . 3 7 3 2 . 11 7 Matter Fused 33 | . . 4 1 . 1 7 2 2 3 6 7 Heat Flow Errors 18 | . . 1 . . 1 3 1 . 1 7 4 Energy Discharges 17 | . . . . . 3 2 2 3 . 3 4 Parts Rejected 3 | . . . . . . . . . . . 3 Parts Fused 3 | . . . . . . . 1 . . 2 . Data Loss (minor) 16 | . . 1 . . . 2 3 2 . 7 1 Data Loss (major) 3 | . . . . . . . . . . 1 2 Misfires 6 | . . 1 . . . 2 . 1 . 2 . Alerts 2 | . . . . . . 1 . . . 1 . Weapon Failures 8 | . . 1 . . . 2 . . 1 4 . Overload Shots . | . . . . . . . . . . . . Overflow Damage 855 | . . . 25 77 119 170 . . 85 200 179 Projectiles 105 | . . . . . . . . . . . 105 Explosions 211 | . . . . 77 . 57 . . . 3 74 Melee 539 | . . . 25 . 119 113 . . 85 197 . Knockbacks 18 | . . . . . 2 7 . . . 4 5 Impact 2 | . . . . . . 1 . . . 1 . Kinetic 13 | . . . . . 2 4 . . . 2 5 Secondary 3 | . . . . . . 2 . . . 1 . Self-Inflicted Damage 266 | . . 45 . 81 . . . . 105 35 . Shots 4 | . . 1 . 1 . . . . 1 1 . Rammed . | . . . . . . . . . . . . Targets Rammed 3 | . . . . . . . . . . . 3 Kicked 3 | . . . . . . . . . . . 3 Crushed . | . . . . . . . . . . . . Highest Temperature 651 | . 194 377 514 12 251 651 159 45 170 317 515 Average Temperature 118 | . 71 154 142 12 54 142 43 26 46 73 133 Received Heat Transfer 4978 | . 126 60 819 54 174 1338 13 . 165 685 1544 Effects 43 | . . 6 7 . . 16 . . . 1 13 Shutdowns 8 | . . 2 1 . . 1 . . . . 4 Energy Bleed 5 | . . . 2 . . 1 . . . . 2 Interference 18 | . . 4 2 . . 6 . . . . 6 Matter Decay 1 | . . . 1 . . . . . . . . Short Circuit 6 | . . . 1 . . 3 . . . 1 1 Damage (minor) 2 | . . . . . . 2 . . . . . Damage (major) 3 | . . . . . . 3 . . . . . Siege Activations . | . . . . . . . . . . . . Martial Activations . | . . . . . . . . . . . . Shielding Activations . | . . . . . . . . . . . . Robots Disrupted . | . . . . . . . . . . . . Combat Hostiles . | . . . . . . . . . . . . Robots Corrupted 7 | . . . . . . 1 . . 2 1 3 Combat Hostiles 6 | . . . . . . . . . 2 1 3 Parts Fried 17 | . . . 2 . 1 4 . . . 3 7 Impact Corruptions 10 | . . . . . 1 3 . . 2 4 . Robots Melted 1 | . . . . . . . . . . . 1 Combat Hostiles 1 | . . . . . . . . . . . 1 Parts Melted 20 | . . 1 2 . 1 5 . . 3 2 6 Heat Transferred 11462 | . 506 730 2442 325 775 2600 137 74 518 958 2397 Parts Sabotaged 5 | . . . . . . . . . . . 5 Parts Stolen . | . . . . . . . . . . . . Parts Stripped . | . . . . . . . . . . . . Power Chain Reactions 1 | . . 1 . . . . . . . . . Alert | -11 -10 -9 -8 -7 -6 -6 -6 -6 -6 -6 -5 ------- Run | Yrd Mat Mat Mat Fac Fac Ext Cet Arc Hub Gar Fac Maximum Alert Level 5 | . . . 1 . . 2 2 1 4 5 4 Low Security (%) 62 | 100 100 100 92 100 100 93 . 80 10 . . Level 1 7 | . . . 7 . . . 96 19 11 . . Level 2 3 | . . . . . . 5 3 . 24 . 8 Level 3 10 | . . . . . . . . . 30 26 46 Level 4 13 | . . . . . . . . . 23 56 45 Level 5 2 | . . . . . . . . . . 17 . High Security . | . . . . . . . . . . . . Max Security . | . . . . . . . . . . . . Peak Influence 1728 | 10 52 145 320 140 51 453 401 273 1249 1728 1342 Initial 907 | . . . 52 140 . . 243 128 . 860 907 Average 373 | 1 8 43 106 39 6 54 312 107 734 1312 999 Influence Increases 7189 | 20 154 322 798 164 170 1184 418 196 1615 998 1150 Destroy 0b10 Robot/C 3480 | . 80 220 540 40 120 580 200 80 540 440 640 Destroy 0b10 Robot/NC 240 | 20 15 5 40 5 10 50 10 . 55 . 30 Destroy Leader 604 | . 14 42 140 22 22 60 10 . 134 40 120 Allied During Kill 960 | . . . . . . 271 188 80 421 . . Trap Triggered on 0b10 10 | . . . . . . 10 . . . . . Successful Hack 120 | . . 4 30 14 5 44 . . 23 . . Disable Machine 390 | . . 30 15 45 . 15 . 30 165 . 90 Anti-Garrison Action 500 | . . . . . . . . . 150 200 150 Destroy Structure 420 | . . 6 18 38 13 19 10 6 112 108 90 Partial Spotted 15 | . . . . . . . . . 15 . . Lose Combat Pursuer 450 | . 45 15 15 . . 135 . . . 210 30 Influence Decreases 5979 | 20 153 197 616 472 170 749 532 517 386 499 1668 Entered New Map 1818 | . . 1 74 168 . . 192 193 . 369 821 Time Decay 3006 | 20 143 196 432 304 159 375 270 284 246 . 577 Lost Part 762 | . 10 . 110 . 11 181 10 . 40 130 270 Lost Ally 393 | . . . . . . 193 60 40 100 . . Squads Dispatched 34 | . 2 1 1 1 1 3 1 . 11 . 13 Investigation 6 | . 1 . . . . 2 1 . 1 . 1 Extermination 5 | . . . . 1 1 . . . . . 3 Reinforcement 13 | . 1 1 1 . . 1 . . 5 . 4 Assault 8 | . . . . . . . . . 3 . 5 Garrison 2 | . . . . . . . . . 2 . . Intercept . | . . . . . . . . . . . . Searches Triggered . | . . . . . . . . . . . . Construction Impeded 4 | . . . . . . 1 . . 2 . 1 Haulers Reinforced . | . . . . . . . . . . . . Active Scanning Responses . | . . . . . . . . . . . . Cargo Convoy Interrupts 1 | . . . . . . . . . . . 1 Stealth | -11 -10 -9 -8 -7 -6 -6 -6 -6 -6 -6 -5 --------- Run | Yrd Mat Mat Mat Fac Fac Ext Cet Arc Hub Gar Fac Distress Signals 10 | . 1 1 2 . . . 2 . 1 . 3 Communications Jammed . | . . . . . . . . . . . . Distress Signals . | . . . . . . . . . . . . Times Spotted 266 | . 11 17 42 3 9 38 11 5 30 31 69 Peak Tracking Total 19 | . 3 5 6 1 3 8 5 2 5 7 19 Tactical Retreats 22 | . 3 1 1 . . 5 . . . 10 2 Traps | -11 -10 -9 -8 -7 -6 -6 -6 -6 -6 -6 -5 ------- Run | Yrd Mat Mat Mat Fac Fac Ext Cet Arc Hub Gar Fac Traps Triggered 19 | . 3 2 2 1 4 2 . . 1 2 2 Indirectly . | . . . . . . . . . . . . Trap Hack Attempts 3 | . . . . . . 3 . . . . . Triggered . | . . . . . . . . . . . . Disarmed 1 | . . . . . . 1 . . . . . Reprogrammed 1 | . . . . . . 1 . . . . . Reused 1 | . . . . . . 1 . . . . . Traps Extracted . | . . . . . . . . . . . . Installed . | . . . . . . . . . . . . Triggered 1 | . . . . . . 1 . . . . . Machines | -11 -10 -9 -8 -7 -6 -6 -6 -6 -6 -6 -5 ---------- Run | Yrd Mat Mat Mat Fac Fac Ext Cet Arc Hub Gar Fac Machines Disabled 33 | . . 2 1 3 . 4 . 2 12 2 7 Max in Single Turn 4 | . . 1 1 3 . 1 . . 4 1 2 Garrison Access 2 | . . . . . . . . . 1 . 1 Garrison Relay 2 | . . . . . . . . . . 2 . Network Hub 1 | . . . . . . . . . 1 . . Machines Repaired . | . . . . . . . . . . . . Machines Dismantled . | . . . . . . . . . . . . Machines Sabotaged . | . . . . . . . . . . . . Overloaded Fab Kills . | . . . . . . . . . . . . Hacking | -11 -10 -9 -8 -7 -6 -6 -6 -6 -6 -6 -5 --------- Run | Yrd Mat Mat Mat Fac Fac Ext Cet Arc Hub Gar Fac Machines Accessed 43 | . . 4 9 2 4 13 1 1 5 2 2 Terminals 32 | . . 3 7 1 2 13 1 . 3 2 . Fabricators 1 | . . . . 1 . . . . . . . Repair Stations . | . . . . . . . . . . . . Recycling Units 4 | . . . 2 . 1 . . . . . 1 Scanalyzers 2 | . . 1 . . 1 . . . . . . Garrison Access 3 | . . . . . . . . . 2 . 1 Total Hacks 83 | . . 11 19 2 5 19 2 5 12 4 4 Successful 38 | . . 5 8 2 3 10 . 5 4 . 1 Failed 44 | . . 5 11 . 2 9 2 . 8 4 3 Catastrophic 12 | . . . 3 . 1 2 . . 2 2 2 Database Lockouts 1 | . . 1 . . . . . . . . . Manual 31 | . . 7 15 1 . 4 1 . 3 . . Terminals 60 | . . 7 17 1 3 19 2 . 7 4 . Fabricators 1 | . . . . 1 . . . . . . . Repair Stations . | . . . . . . . . . . . . Recycling Units 4 | . . . 2 . 1 . . . . . 1 Scanalyzers 5 | . . 4 . . 1 . . . . . . Garrison Access 8 | . . . . . . . . . 5 . 3 Terminal Hacks 20 | . . . 3 . 2 9 . 5 1 . . Record 5 | . . . . . . . . 5 . . . Prototype ID Bank 2 | . . . 1 . 1 . . . . . . Open Door 10 | . . . . . 1 9 . . . . . Branch Access Points 2 | . . . 2 . . . . . . . . Emergency Access Points 1 | . . . . . . . . . 1 . . Fabricator Hacks 1 | . . . . 1 . . . . . . . Build 1 | . . . . 1 . . . . . . . Repair Station Hacks . | . . . . . . . . . . . . Recycling Unit Hacks 3 | . . . 1 . 1 . . . . . 1 Report Inventory 3 | . . . 1 . 1 . . . . . 1 Scanalyzer 2 | . . 2 . . . . . . . . . Retrieve Study 2 | . . 2 . . . . . . . . . Garrison Access Hacks 1 | . . . . . . . . . 1 . . Unlock Access 1 | . . . . . . . . . 1 . . Unauthorized Hacks 11 | . . 3 4 1 . 1 . . 2 . . Terminals 11 | . . 3 4 1 . 1 . . 2 . . Botnet 11 | . . 3 4 1 . 1 . . 2 . . Fabricators . | . . . . . . . . . . . . Repair Stations . | . . . . . . . . . . . . Recycling Units . | . . . . . . . . . . . . Scanalyzers . | . . . . . . . . . . . . Garrison Access . | . . . . . . . . . . . . Data Cores Recovered 2 | . . . 1 . . 1 . . . . . Used . | . . . . . . . . . . . . Hacking Detections 30 | . . 4 7 1 1 9 1 . 4 2 1 Full Trace Events 4 | . . 1 . . . 1 1 . . . 1 Feedback Events . | . . . . . . . . . . . . Feedback Blocked . | . . . . . . . . . . . . Robot Schematics Acquired . | . . . . . . . . . . . . Robots Built . | . . . . . . . . . . . . Authchips . | . . . . . . . . . . . . Time . | . . . . . . . . . . . . Total Robot Build Rating . | . . . . . . . . . . . . Part Schematics Acquired . | . . . . . . . . . . . . Parts Built . | . . . . . . . . . . . . Authchips . | . . . . . . . . . . . . Time 117 | . . . . 117 . . . . . . . Total Part Build Rating . | . . . . . . . . . . . . Part Studies Acquired 2 | . . 2 . . . . . . . . . Parts Repaired . | . . . . . . . . . . . . Time . | . . . . . . . . . . . . Parts Recycled . | . . . . . . . . . . . . Recycled Matter . | . . . . . . . . . . . . Retrieved Matter . | . . . . . . . . . . . . Retrieved Components . | . . . . . . . . . . . . Parts Scanalyzed . | . . . . . . . . . . . . Part Schematics Acquired . | . . . . . . . . . . . . Parts Damaged . | . . . . . . . . . . . . Bothacking | -11 -10 -9 -8 -7 -6 -6 -6 -6 -6 -6 -5 ------------ Run | Yrd Mat Mat Mat Fac Fac Ext Cet Arc Hub Gar Fac Used RIF Installer . | . . . . . . . . . . . . Robots Hacked 6 | . . . . . . 2 . 4 . . . Non-combat 5 | . . . . . . 1 . 4 . . . Combat 1 | . . . . . . 1 . . . . . Robot Hacks Applied 6 | . . . . . . 2 . 4 . . . parse_system 6 | . . . . . . 2 . 4 . . . Relay Couplers Released 14 | . . . . . . . . . 4 7 3 Machine Destruction 14 | . . . . . . . . . 4 7 3 Fabnet Peak Effective % . | . . . . . . . . . . . . Robots Rewired 5 | . . . . . . 5 . . . . . Allies Hacked . | . . . . . . . . . . . . Hacks Repelled . | . . . . . . . . . . . . Allies | -11 -10 -9 -8 -7 -6 -6 -6 -6 -6 -6 -5 -------- Run | Yrd Mat Mat Mat Fac Fac Ext Cet Arc Hub Gar Fac Total Allies 23 | . . . . . . 18 5 . . . . Largest Group 11 | . . . . . . 8 11 9 5 . . Highest-Rated Group 788 | . . . . . . 386 788 637 415 . . Highest-Rated Ally 159 | . . . . . . 159 159 143 96 . . Initial Warlord ECA Mod 3 | . . . . . . . . . . . 3 Total Orders . | . . . . . . . . . . . . Ally Attacks 234 | . . . . . . 83 43 34 74 . . Total Damage 6302 | . . . . . . 1381 1074 1051 2796 . . Kills 49 | . . . . . . 15 7 4 23 . . Allies Corrupted . | . . . . . . . . . . . . Allies Melted 1 | . . . . . . . . . 1 . . Intel | -11 -10 -9 -8 -7 -6 -6 -6 -6 -6 -6 -5 ------- Run | Yrd Mat Mat Mat Fac Fac Ext Cet Arc Hub Gar Fac Active Infowar (turns) 4796 | 70 850 735 20 1008 1163 950 . . . . . Terrain 2113 | . . . . . 1163 950 . . . . . Structural 1010 | . . . . 1008 2 . . . . . . Seismic 1675 | 70 850 735 20 . . . . . . . . Robot Analysis Total . | . . . . . . . . . . . . Derelict Logs Recovered . | . . . . . . . . . . . . Drone Launches . | . . . . . . . . . . . . Drone Recoveries . | . . . . . . . . . . . . Exploration | -11 -10 -9 -8 -7 -6 -6 -6 -6 -6 -6 -5 ------------- Run | Yrd Mat Mat Mat Fac Fac Ext Cet Arc Hub Gar Fac Turns Passed 12579 | 149 850 756 1596 1020 1168 1944 584 752 529 1456 1775 Spaces Moved 4955 | 73 337 319 647 470 458 679 261 348 231 538 594 Core 45 | 5 . . . . . . . . . . 40 Treads 2709 | 68 337 319 647 470 458 410 . . . . . Legs 1957 | . . . . . . 25 261 348 231 538 554 Wheels 244 | . . . . . . 244 . . . . . Hover . | . . . . . . . . . . . . Flight . | . . . . . . . . . . . . Fastest Speed 50 | 50 160 200 160 162 212 190 190 190 190 187 50 Average Speed 206 | 152 199 202 178 187 224 241 195 190 190 210 231 Slowest Speed 360 | 160 240 240 240 360 285 360 260 190 190 260 250 Overloaded Moves . | . . . . . . . . . . . . Propulsion Burnouts . | . . . . . . . . . . . . Robots Hopped . | . . . . . . . . . . . . Potential Cave-ins . | . . . . . . . . . . . . Cave-ins Triggered . | . . . . . . . . . . . . Exploration Rate (%) 40 | 3 44 29 62 12 9 70 69 97 33 47 14 Regions Visited 11 Branch Regions 4 Pre-discovered Areas . | . . . . . . . . . . . . Known Exits Taken 2 | . . . . . . . . 1 1 . . Unknown Exits Taken 8 | 1 1 1 1 1 1 1 1 . . . . Scrap Searched . | . . . . . . . . . . . . Spaces Dug 25 | . . . . 1 11 . . . . 13 . Terrain Destroyed 366 | . . 2 14 46 13 11 2 2 193 37 46 Melee 25 | . . . . 1 11 . . . . 13 . Projectile 71 | . . . . . 2 11 2 2 25 11 18 AOE 270 | . . 2 14 45 . . . . 168 13 28 Terrain Rammed . | . . . . . . . . . . . . Walls Destroyed . | . . . . . . . . . . . . Machines Disabled . | . . . . . . . . . . . . Actions | -11 -10 -9 -8 -7 -6 -6 -6 -6 -6 -6 -5 --------- Run | Yrd Mat Mat Mat Fac Fac Ext Cet Arc Hub Gar Fac Total 6398 | 91 470 385 948 591 540 836 310 433 267 693 834 Wait 621 | . 98 31 161 79 37 8 6 75 2 11 113 Move 4943 | 72 336 318 646 469 457 678 260 347 230 536 594 Hop . | . . . . . . . . . . . . Pick Up 90 | 2 1 9 22 11 5 12 8 . 2 15 3 Fast Attach 67 | 7 2 4 9 4 6 15 6 . . 5 9 Attach 69 | . . . 9 2 4 17 1 . 1 16 19 Detach 26 | . 1 2 3 1 . 9 3 . . 5 2 Swap 38 | . 2 1 8 8 1 5 2 3 2 4 2 Drop 57 | . 2 1 16 8 2 4 10 . 4 7 3 Fire 365 | 10 28 19 62 5 14 59 14 2 22 49 81 Melee 98 | . . . 12 4 14 18 . 6 4 40 . Ram . | . . . . . . . . . . . . Kick 3 | . . . . . . . . . . . 3 Crush . | . . . . . . . . . . . . Escape Stasis 18 | . . . . . . 8 . . . 5 5 Rewire . | . . . . . . . . . . . . Trap 3 | . . . . . . 3 . . . . . Miscellaneous . | . . . . . . . . . . . . Route ------- -11/Scrapyard -10/Materials (discovered 3 exits: *Mat / [*Min] / [*Sub]) -9/Materials -8/Materials -7/Factory -6/Factory -6/Extension (discovered 2 exits: *Fac / *Cet) -6/Cetus (discovered 2 exits: *Fac / *Arc) -6/Archives (discovered 3 exits: *Fac / *Hub x2) -6/Hub_04(d) (discovered 3 exits: *Fac x2 / Gar) -6/Garrison (discovered 2 exits: *Fac x2) -5/Factory History --------- Turn | Location | Event 10 | -11/Scrapyard | Discovered new exit (range 15) 150 | -11/Scrapyard | Entered Materials 303 | -10/Materials | Build established: Mutant 588 | -10/Materials | Discovered new exit (range 9) 778 | -10/Materials | Discovered new exit (range 3) 820 | -10/Materials | Discovered new exit (range 5) 1000 | -10/Materials | Entered another Materials area 1000 | -9/Materials | Evolved 2 slots: Weapon x2 1059 | -9/Materials | Central database locked down 1398 | -9/Materials | Build established: Gunner 1492 | -9/Materials | Destroyed 7 combat bots 1509 | -9/Materials | Discovered new exit (range 3) 1756 | -9/Materials | Entered another Materials area 1756 | -8/Materials | Evolved 2 slots: Propulsion x1, Utility x1 2439 | -8/Materials | Lost 4 parts (3n1w) 2676 | -8/Materials | Build established: Scavenger-Gunner 2870 | -8/Materials | Lost 6 parts (1p2n3w) 3288 | -8/Materials | Discovered new exit (range 8) 3352 | -8/Materials | Entered Factory 3352 | -7/Factory | Evolved 2 slots: Propulsion x1, Utility x1 3400 | -7/Factory | Discovered new exit (range 16) 4372 | -7/Factory | Entered another Factory area 4372 | -6/Factory | Evolved 2 slots: Utility x2 4677 | -6/Factory | Discovered new exit (range 14) 5540 | -6/Factory | Entered Extension 5623 | -6/Extension | Build established: Gunner 5746 | -6/Extension | Rescued a captive Derelict 5747 | -6/Extension | Rescued a captive Derelict 5810 | -6/Extension | Rescued a captive Derelict 5927 | -6/Extension | Rescued a captive Derelict 5928 | -6/Extension | Rescued a captive Derelict 6072 | -6/Extension | Rescued a captive Derelict 6158 | -6/Extension | Lost 4 allies 6313 | -6/Extension | Spotted B-75 Beast 6330 | -6/Extension | Spotted B-75 Beast 6346 | -6/Extension | Lost 5 allies 6347 | -6/Extension | Destroyed B-75 Beast 6392 | -6/Extension | Destroyed B-75 Beast 6393 | -6/Extension | Lost 12 parts (1p3n3u5w) 6616 | -6/Extension | Rescued a captive Derelict 6632 | -6/Extension | Build established: Scavenger-Mutant 6907 | -6/Extension | Rescued a captive Derelict 6909 | -6/Extension | Rescued a captive Derelict 7032 | -6/Extension | Build established: Scavenger-Tank 7074 | -6/Extension | Rescued A7 7163 | -6/Extension | Rescued a captive Derelict 7164 | -6/Extension | Rescued a captive Derelict 7244 | -6/Extension | Rescued a captive Derelict 7320 | -6/Extension | Discovered new exit (range 10) 7321 | -6/Extension | Disrupted transfer network 7322 | -6/Extension | Discovered new exit (range 6) 7403 | -6/Extension | Lost 7 parts (2n3u2w) 7484 | -6/Extension | Entered Cetus 7484 | -6/Cetus | Accompanied by 7 allies (A7) 7489 | -6/Cetus | Acquired a Cetus Manufacturing Module code from A7 7508 | -6/Cetus | Spotted Cetus Guard 7508 | -6/Cetus | Spotted Cetus Guard 7511 | -6/Cetus | Allies destroyed Cetus Guard 7511 | -6/Cetus | Spotted Cetus Guard 7522 | -6/Cetus | Allies destroyed Cetus Guard 7525 | -6/Cetus | Spotted Cetus Guard 7525 | -6/Cetus | Destroyed Cetus Guard 7531 | -6/Cetus | Allies destroyed Cetus Guard 7644 | -6/Cetus | Build established: Scavenger-Gunner 7645 | -6/Cetus | Started Cetus Manufacturing Module 7670 | -6/Cetus | Manufactured an Enhanced Grunt 7695 | -6/Cetus | Manufactured an Enhanced Grunt 7720 | -6/Cetus | Manufactured an Enhanced Grunt 7745 | -6/Cetus | Manufactured an Enhanced Grunt 7770 | -6/Cetus | Manufactured an Enhanced Grunt 7804 | -6/Cetus | Discovered new exit (range 16) 7839 | -6/Cetus | Spotted Cetus Guard 7839 | -6/Cetus | Spotted Cetus Guard 7846 | -6/Cetus | Destroyed Cetus Guard 7847 | -6/Cetus | Spotted Cetus Guard 7849 | -6/Cetus | Spotted Cetus Guard 7859 | -6/Cetus | Allies destroyed Cetus Guard 7861 | -6/Cetus | Allies destroyed Cetus Guard 7863 | -6/Cetus | Destroyed Cetus Guard 7942 | -6/Cetus | Discovered new exit (range 16) 7954 | -6/Cetus | Met Revision 17 8068 | -6/Cetus | Entered Archives 8068 | -6/Archives | Accompanied by 9 allies (A7) 8111 | -6/Archives | Lost 3 allies 8135 | -6/Archives | Discovered new exit (range 16) 8154 | -6/Archives | Unable to access archive contents 8163 | -6/Archives | Discovered new exit (range 16) 8190 | -6/Archives | Unable to access archive contents 8198 | -6/Archives | Discovered new exit (range 15) 8209 | -6/Archives | Unable to access archive contents 8547 | -6/Archives | Identified exit to Hub_04(d) 8820 | -6/Archives | Entered Hub_04(d) 8820 | -6/Hub_04(d) | Accompanied by 5 allies 8954 | -6/Hub_04(d) | Discovered new exit (range 15) 8961 | -6/Hub_04(d) | Spotted B-75 Beast 8969 | -6/Hub_04(d) | Allies destroyed B-75 Beast 9016 | -6/Hub_04(d) | Identified exit to Factory 9031 | -6/Hub_04(d) | Garrison activated, responded to threat 9170 | -6/Hub_04(d) | First assault squad dispatched 9226 | -6/Hub_04(d) | Network Hub disabled 9332 | -6/Hub_04(d) | Identified exit to Garrison 9336 | -6/Hub_04(d) | Discovered exit to Factory (range 15) 9338 | -6/Hub_04(d) | Garrison activated, responded to threat 9349 | -6/Hub_04(d) | Entered Garrison 9378 | -6/Garrison | Lost 3 parts (1u2w) 9453 | -6/Garrison | Triggered checkpoint 9521 | -6/Garrison | Core integrity fell below 50% 9640 | -6/Garrison | Garrison Relay disabled 9756 | -6/Garrison | Lost 3 parts (1p1n1u) 9833 | -6/Garrison | Triggered checkpoint 9945 | -6/Garrison | Triggered checkpoint 9997 | -6/Garrison | Lost 4 parts (1p1n1u1w) 10134 | -6/Garrison | Garrison Relay disabled 10338 | -6/Garrison | Discovered exit to Factory (range 13) 10417 | -6/Garrison | Spotted B-75 Beast 10434 | -6/Garrison | Destroyed B-75 Beast 10551 | -6/Garrison | Attempted to access garrison exit controls, blocked by remote lockdown 10661 | -6/Garrison | Triggered checkpoint 10778 | -6/Garrison | Discovered exit to Factory (range 11) 10805 | -6/Garrison | Entered Factory 10805 | -5/Factory | Evolved 2 slots: Power x1, Utility x1 10979 | -5/Factory | Build established: Scavenger-Tank 11100 | -5/Factory | Allied Derelicts emerged from ambush trap array 11675 | -5/Factory | Assembled infested ambush trap array 11746 | -5/Factory | Lost 4 parts (2p1u1w) 11855 | -5/Factory | Lost 6 parts (1p1u4w) 11885 | -5/Factory | Destroyed 7 combat bots 11962 | -5/Factory | Cargo convoy interrupted 12305 | -5/Factory | First assault squad dispatched 12327 | -5/Factory | Lost 5 parts (2p2u1w) 12522 | -5/Factory | Core integrity fell below 50% 12565 | -5/Factory | Core integrity fell below 20% 12580 | -5/Factory | Destroyed by G-50 Soldier with Heavy Laser Last Messages --------------- 12549_ E-15 Imp unfolds itself. 12551_ Carbon-fiber Leg destroyed. 12553_ Kicked E-15 Imp. 12554_ G-67 Veteran suffers critical hit (Burn). 12555_ Kicked E-15 Imp. 12556_ Carbon-fiber Leg blown off. 12556_ Enh. Flexi-carbon Leg blown off. 12556_ E-15 Imp destroyed. 12557_ Adv. Targeting Computer destroyed. 12557_ Dropped Huge Storage Unit. 12558_ Acquired 4 matter. 12560_ Flexi-carbon Leg destroyed. 12560_ W-25 Informer sends out distress signal. 12565_ YCZJDYMGNQTY6FZ%GE7:O31 S&KBET, 12578_ C-45 Heavy ARC bursts open, deploying its payload. 12578_ G-67 Veteran unfolds itself. 12578_ G-50 Soldier unfolds itself. 12578_ E-15 Imp unfolds itself. 12579_ Penetrated by Slug. Map ----- +----------------------------------------------------+ | ???????????????# #??# """ "" # | | ???????????????# ######??# % # #### | | ???????????????# #???????#######+###### #??? | | ???????????????# #?????????????# #?######/#/#### | | ???????????????# #?????????????#!#?# % | | ???????????????# #?????????????# #?# | | ???????????????# #?????????????# #?# """ | | ???????????????# #?????????????# ### """ | | | ???????????????# #?????????????# + """ | | ???????????????# #?????????????##### ! | | ???????????????# #???? ???????????# | | ???????????????# #??"" "???????????# """""" [ | | ???????????????# # """ ""??????????# """""" | | ???????????????+ + """ ""??????????# """""" | | ???????????????# # #???????# """""" ! | | ???????????????# #?? #???????# ??? ! | | ???????????????# #???#######????????##???#?##### | | ???????????????# ##### #???????????????????? | | ???????????????# #???????????????????? | | ???????????????# " #???????????????????? | | ???????????????# #???????????????????? | | ???????????????# ##### #???????????????????? | | ???????????????# #???## e ##???????????????????? | | ???????????????# #????# T#???????????????????? | | ???????????????# #????# gg #???????????????????? | | ???????????????# #????#@g%##???????????????????? | | ???????????????# #????# g #????????????????????? | | ???????????????# #????# #????????????????????? | | ???????????????+ ?????# #????????????????????? | | ???????????????# ?????# #????????????????????? | | ???????????????# ?????# #????????????????????? | | ???????????????# ?????# #????????????????????? | | ???????????????# ????? ????????????????????? | | ???????????????????????? ????????????????????? | | ???????????????????????? ???????????????????? | | ???????????????????????? Y ???????????????????? | | ???????????????????????? ???????????????????? | | ???????????????????????? ] #??????????????????? | | ???????????????????????? #??????????????????? | | ???????????????????????? ???????????????????? | | ???????????????????????? ?????????????????????? | | ?????????????????????????????????????????????????? | | ?????????????????????????????????????????????????? | | ?????????????????????????????????????????????????? | | ?????????????????????????????????????????????????? | | ?????????????????????????????????????????????????? | | ?????????????????????????????????????????????????? | | ?????????????????????????????????????????????????? | | ?????????????????????????????????????????????????? | | ?????????????????????????????????????????????????? | +----------------------------------------------------+ Best States ------------- Heat Dissipation 90 Energy Generation 43 Energy Capacity 1055 Matter Stores 300 Matter Capacity 300 Sight Range 16 Terrain Scan Range 16 Terrain Scan Density 210 Armor Coverage 600 Evasion (%) 55 Targeting Accuracy 8 Target Analysis 5 Core Analysis 6 Recoil Reduction 4 Energy Filtering 30 Particle Charging 25 Item Schematics ----------------- None Robot Schematics ------------------ None Fabricated ------------ Nothing Repaired ---------- Nothing Studied --------- Med. Laser | -9/Materials | Hacked Lgt. Treads | -9/Materials | Hacked Alien Tech Used ----------------- None Achievements -------------- None Challenges ------------ None Game ------ Seed ThiefNetworkedSegregator Manual? 0 Play Time 01:15:06 Cumulative 156.6 hours Start 2026.08.12 @ 13:47:53 End 2026.08.12 @ 15:09:12 Sessions 1 Manual Loads 0 Difficulty Rogue Special Mode None Game No. 315 Rogue 315 Adventurer 0 Explorer 0 Win Type - Total 2 Types 2/0/0/0/0/0/0/0/0/0 Lore% 57 Gallery% 57 Achievement% 45 Wizard Run 0 Options --------- Layout 2 ASCII 0 Keyboard 1 Movement Arrows Keybinds 0 Fullscreen 1 Font 24/Smallcaps Map View 50x44 Zoom Use 0% Tactical HUD 1 Map Filters NONE Filters NONE Steam 1 RUN: ba5b093b-eb7f-4f08-9bef-567abe78d893